{"text_format":"1","workbook":"xlsx","n_sheets":2,"sheets":["Conversões de Moeda","Taxas de Conversão"],"not_rendered":{"charts":0,"images":1,"macros":1,"external_links":0,"defined_names":7,"comments":0,"pivot_tables":0},"unopened":[],"bounds":{"document_bytes":16777216,"sheet_cells":100000,"rows_first":2000,"rows_last":500,"rows_between":2000,"halvings":0,"cell_chars":16384,"cell_head_chars":4096},"cells_cut":0,"cells_raw":0,"read":"whole","date_system":"1900"}

{"sheet":"Conversões de Moeda","index":0,"n_rows":10,"n_cols":5,"rows_kept":10,"cut":false,"hidden":false,"merged":[]}
[]
[]
[]
[]
[null,null,null,41,6000]
[]
[]
[]
[]
[null,null,null,27,{"$f":"IFERROR(IF(OR(DeMoeda=0,ParaMoeda=0),\"\",DeValor/OFFSET(Moedas,DeMoeda-1,3,1,1)*OFFSET(Moedas,ParaMoeda-1,3,1,1)),\"\")","v":33708}]

{"sheet":"Taxas de Conversão","index":1,"n_rows":68,"n_cols":5,"rows_kept":68,"cut":false,"hidden":false,"merged":[]}
["Taxas de Conversão"]
["Os dados nesta folha são de uma consulta Web do MSN Money. São atualizados quando o botão Atualizar Taxas de Conversão na folha Conversões de Moeda é clicado."]
[null,null,"Currency Rates Provided by MSN Money"]
[null,null,"Click here to visit MSN Money"]
[]
[null,"Nome da Lista","Name","In US$","   Per US$"]
[null,{"$f":"IF(ISERROR(FIND(\" to US Dollar\",C7)),C7,LEFT(C7,FIND(\" to US Dollar\",C7)-1))","v":"Argentine Peso"},"Argentine Peso to US Dollar",0.20630999999999999,4.8470000000000004]
[null,{"$f":"IF(ISERROR(FIND(\" to US Dollar\",C8)),C8,LEFT(C8,FIND(\" to US Dollar\",C8)-1))","v":"Australian Dollar"},"Australian Dollar to US Dollar",1.0468,0.95499999999999996]
[null,"Bahraini Dinar","Bahraini Dinar to US Dollar",2.6493000000000002,0.377]
[null,"Bolivian Boliviano","Bolivian Boliviano to US Dollar",0.14244999999999999,7.02]
[null,"Brazilian Real","Brazilian Real to US Dollar",0.47316999999999998,2.113]
[null,"British Pound","British Pound to US Dollar",1.6113,0.621]
[null,"Canadian Dollar","Canadian Dollar to US Dollar",1.0053000000000001,0.995]
[null,"Chile Peso","Chile Peso to US Dollar",2.0699999999999998E-3,482.5]
[null,"Chinese Yuan","Chinese Yuan to US Dollar",0.16047,6.2320000000000002]
[null,"Colombian Peso","Colombian Peso to US Dollar",5.5000000000000003E-4,1822]
[null,"Czech Koruna","Czech Koruna to US Dollar",5.1679999999999997E-2,19.350999999999999]
[null,"Danish Krone","Danish Krone to US Dollar",0.17530000000000001,5.7039999999999997]
[null,"Euro","Euro to US Dollar",1.3075000000000001,0.76500000000000001]
[null,"Egyptian Pound*","Egyptian Pound* to US Dollar",0.16347,6.117]
[null,"Hong Kong Dollar","Hong Kong Dollar to US Dollar",0.12902,7.7510000000000003]
[null,"Hungarian Forint","Hungarian Forint to US Dollar",4.6299999999999996E-3,216.1]
[null,"Indian Rupee","Indian Rupee to US Dollar",1.8290000000000001E-2,54.69]
[null,"Indonesia Rupiah","Indonesia Rupiah to US Dollar",1E-4,9611]
[null,"Japanese Yen","Japanese Yen to US Dollar",1.2200000000000001E-2,82]
[null,"Jordanian Dinar","Jordanian Dinar to US Dollar",1.4104000000000001,0.70899999999999996]
[null,"Kenyan Shilling","Kenyan Shilling to US Dollar",1.163E-2,86.02]
[null,"South Korean Won","South Korean Won to US Dollar",9.2000000000000003E-4,1084]
[null,"Kuwaiti Dinar","Kuwaiti Dinar to US Dollar",3.5510999999999999,0.28199999999999997]
[null,"Morocco Dirham","Morocco Dirham to US Dollar",0.11738,8.52]
[null,"Malaysian Ringgit","Malaysian Ringgit to US Dollar",0.32840999999999998,3.0449999999999999]
[null,"Mexican Peso","Mexican Peso to US Dollar",7.7119999999999994E-2,12.967000000000001]
[null,"Norwegian Krone","Norwegian Krone to US Dollar",0.17799000000000001,5.6180000000000003]
[null,"Omani Rial","Omani Rial to US Dollar",2.5966999999999998,0.38500000000000001]
[null,"Peruvian New Sol","Peruvian New Sol to US Dollar",0.38729999999999998,2.5819999999999999]
[null,"Philippine Peso","Philippine Peso to US Dollar",2.4420000000000001E-2,40.950000000000003]
[null,"Pakistani Rupee","Pakistani Rupee to US Dollar",1.031E-2,97.04]
[null,"Saudi Riyal","Saudi Riyal to US Dollar",0.26661000000000001,3.7509999999999999]
[null,"Singapore Dollar","Singapore Dollar to US Dollar",0.82091000000000003,1.218]
[null,"South African Rand","South African Rand to US Dollar",0.11314,8.8390000000000004]
[null,"Swedish Krona","Swedish Krona to US Dollar",0.15142,6.6040000000000001]
[null,"Swiss Franc","Swiss Franc to US Dollar",1.0778000000000001,0.92800000000000005]
[null,"Taiwan Dollar","Taiwan Dollar to US Dollar",3.4380000000000001E-2,29.087]
[null,"Thai Baht","Thai Baht to US Dollar",3.2570000000000002E-2,30.7]
[null,"Tunisian Dinar","Tunisian Dinar to US Dollar",0.63832999999999995,1.5669999999999999]
[null,"Emirati Dirham","Emirati Dirham to US Dollar",0.27221000000000001,3.6739999999999999]
[null,"United States Dollar","United States Dollar",1,1]
[null,"Venezuelan Bolivar","Venezuelan Bolivar to US Dollar",0.23282,4.2949999999999999]
[]
[null,null,"DATA PROVIDERS"]
[]
[null,null,"Copyright © 2012 Microsoft. All rights reserved."]
[]
[null,null,"Quotes are real-time for NASDAQ, NYSE and AMEX. See delay times for other exchanges."]
[]
[null,null,"Fundamental company data and historical chart data provided by Thomson Reuters (click for restrictions). Real-time quotes provided by BATS Exchange. Real-time index quotes and delayed quotes supplied by Interactive Data Real-Time Services. Fund summary, fund performance and dividend data provided by Morningstar Inc. Analyst recommendations provided by Zacks Investment Research. StockScouter data provided by Verus Analytics. IPO data provided by Hoover's Inc. Index membership data provided by SIX Telekurs."]
[]
[null,null,"Japanese stock price data provided by Nomura Research Institute Ltd.; quotes delayed 20 minutes. Canadian fund data provided by CANNEX Financial Exchanges Ltd."]
[]
[]
[null,null,"MSN Money",null,"Microsoft Office Update"]
[null,null,"Discover Investor's tools, columns, and more!",null,"Get the latest from Microsoft Office"]
[null,null,"Privacy"]
[null,null,"Legal"]
[null,null,"Advertise"]
[null,null,"MSN Worldwide"]
[null,null,"About our ads"]
[null,null,"© 2012 Microsoft "]